fUSD/lending_fUSD_20240905
["ID","MTS","AMOUNT","RATE_DAILY","PERIOD"]
[337247941,1725549285388,-50832.26225941,0.0004288,30]
[337247942,1725549285426,-1947.23704054,0.000429,60]
[337247943,1725549285465,-394.71634063,0.000429,60]
[337247944,1725549285502,-3264.3,0.00042943,94]
[337247945,1725549285540,-2698.0,0.00042948,60]
[337247946,1725549285581,-50000.0,0.00043,33]
[337247947,1725549285622,-50000.0,0.00043,43]
[337247948,1725549285670,-2000.60319742,0.00043,120]
[337247949,1725549285711,-1706.71614999,0.00043,120]
[337247950,1725549285752,-588660.837038,0.00043,120]
[337247951,1725549287684,-1100.0,0.00014,5]
[337247952,1725549287709,-1700.0,0.000141,5]
[337247953,1725549287733,-2200.0,0.000142,5]
[337247954,1725549287755,-2800.0,0.000143,5]
[337247955,1725549287778,-500.0,0.000144,5]
[337247956,1725549287801,-500.0,0.000145,5]
[337247957,1725549287824,-500.0,0.000146,5]
[337247958,1725549287845,-186.1725,0.000147,5]
[337247959,1725549297418,-160.0,0.00031123,30]
[337247960,1725549297462,-1000.0,0.00031123,30]
[337247961,1725549297499,-193.0,0.00031123,30]
[337247962,1725549297535,-193.0,0.00031123,30]
[337247963,1725549297571,-193.0,0.00031123,30]
[337247964,1725549297610,-200.0,0.00031123,30]
[337247965,1725549297648,-187.0,0.00031123,30]
[337247966,1725549297687,-200.0,0.00031123,30]
[337247967,1725549297723,-1000.0,0.00031123,120]
[337247968,1725549297758,-1000.0,0.00031123,30]
[337247969,1725549297795,-1000.0,0.00031123,60]
[337247970,1725549297831,-1000.0,0.00031123,30]
[337247971,1725549297869,-1000.0,0.00031123,60]
[337247972,1725549297905,-3829.62990736,0.00031123,60]
[337247973,1725549297943,-1000.0,0.00031123,30]
[337247974,1725549297980,-800.00247573,0.00031123,30]
[337247975,1725549298016,-1000.0,0.00031123,30]
[337247976,1725549298054,-1000.0,0.00031123,30]
[337247977,1725549298090,-1000.0,0.00031123,30]
[337247978,1725549298125,-1000.0,0.00031123,30]
[337247979,1725549298161,-387.676391,0.00031123,30]
[337247980,1725549298200,-1000.0,0.00031123,30]
[337247981,1725549298237,-3646.2964,0.00031123,30]
[337247982,1725549298276,-2000.0,0.00031123,30]
[337247983,1725549298315,-2042.7,0.00031123,30]
[337247984,1725549298352,-2000.0,0.00031123,30]
[337247985,1725549298389,-2042.699999,0.00031123,30]
[337247986,1725549298426,-2000.0,0.00031123,30]
[337247987,1725549298464,-2042.699999,0.00031123,30]
[337247988,1725549298502,-2000.0,0.00031123,30]
[337247989,1725549298540,-2042.7,0.00031123,30]
[337247990,1725549298580,-994.0,0.00031123,30]
[337247991,1725549298617,-233.78522953,0.00031123,60]
[337247992,1725549298658,-1000.0,0.00031123,30]
[337247993,1725549298702,-1000.0,0.00031123,30]
[337247994,1725549298741,-1000.0,0.00031123,30]
[337247995,1725549298779,-1000.0,0.00031123,30]
[337247996,1725549298817,-187.0,0.00031123,30]
[337247997,1725549298855,-2000.0,0.00031123,30]
[337247998,1725549298893,-2042.7,0.00031123,30]
[337247999,1725549298932,-3000.0,0.00031123,120]
[337248000,1725549298967,-155.0,0.00031123,120]
[337248001,1725549299002,-3040.18224593,0.00031123,30]
[337248002,1725549299037,-489.18318121,0.00031123,30]
[337248003,1725549299072,-530.82121278,0.00031123,60]
[337248004,1725549299109,-365.60345498,0.00031123,30]
[337248005,1725549299145,-1536.1321106,0.00031123,30]
[337248006,1725549299183,-838.66720524,0.00031123,30]
[337248007,1725549299219,-1000.0,0.00031123,30]
[337248008,1725549299254,-2650.90256747,0.00031123,30]
[337248009,1725549299290,-2271.91821543,0.00031123,30]
[337248010,1725549299326,-1926.10172059,0.00031123,30]
[337248011,1725549299364,-2392.53575046,0.00031123,30]
[337248012,1725549299399,-707.71255837,0.00031123,30]
[337248013,1725549299435,-261.91574375,0.00031123,30]
[337248014,1725549299475,-844.5827647,0.00031123,30]
[337248015,1725549299514,-654.74590822,0.00031123,30]
[337248016,1725549299551,-1055.17303247,0.00031123,30]
[337248017,1725549299587,-253.8738166,0.00031123,30]
[337248018,1725549299623,-946.2296579,0.00031123,30]
[337248019,1725549299663,-2500.0,0.00031123,30]
[337248020,1725549299702,-821.48364291,0.00031123,30]
[337248021,1725549299737,-3000.0,0.00031123,30]
[337248022,1725549299771,-829.3406963,0.00031123,30]
[337248023,1725549299805,-407.70351409,0.00031123,30]
[337248024,1725549299841,-893.31819083,0.00031123,30]
[337248025,1725549299873,-2132.65947149,0.00031123,60]
[337248026,1725549299907,-199.94287537,0.00031123,30]
[337248027,1725549299940,-922.87632479,0.00031123,30]
[337248028,1725549299972,-337.3084333,0.00031123,30]
[337248029,1725549300006,-1855.17764722,0.00031123,30]
[337248030,1725549300041,-2058.27209539,0.00031123,120]
[337248031,1725549300078,-2945.55619734,0.00031123,30]
[337248032,1725549300112,-194.23893401,0.00031123,30]
[337248033,1725549300147,-848.88859006,0.00031123,30]
[337248034,1725549300184,-2742.15849049,0.00031123,30]
[337248035,1725549300221,-195.50474352,0.00031123,30]
[337248036,1725549300257,-1994.41360155,0.00031123,30]
[337248037,1725549300294,-570.79856472,0.00031123,30]
[337248038,1725549300331,-657.79650823,0.00031123,30]
[337248039,1725549300370,-256.07279504,0.00031123,30]
[337248040,1725549300408,-2576.83366571,0.00031123,30]
[337248041,1725549300446,-215.47115822,0.00031123,30]
[337248042,1725549300486,-1697.2113021,0.00031123,30]
[337248043,1725549300523,-288.96154749,0.00031123,31]
[337248044,1725549300563,-2227.87614423,0.00031123,30]
[337248045,1725549300604,-1443.51749605,0.00031123,30]
[337248046,1725549300641,-2268.46847664,0.00031123,30]
[337248047,1725549300678,-790.30938625,0.00031123,30]
[337248048,1725549300723,-1405.01170392,0.00031123,30]
[337248049,1725549300760,-2337.75028195,0.00031123,30]
[337248050,1725549300796,-1676.69862629,0.00031123,30]
[337248051,1725549300831,-1098.73946169,0.00031123,30]
[337248052,1725549300865,-1070.63650539,0.00031123,30]
[337248053,1725549300900,-289.86279316,0.00031123,30]
[337248054,1725549300940,-2108.71300048,0.00031123,30]
[337248055,1725549300974,-229.0750024,0.00031123,60]
[337248056,1725549301009,-266.0,0.00031123,30]
[337248057,1725549301045,-737.13681539,0.00031123,30]
[337248058,1725549301246,-2002.77,0.00031123,30]
[337248059,1725549301282,-1000.0,0.00031123,60]
[337248060,1725549301318,-1000.30159871,0.00031123,120]
[337248061,1725549301353,-853.358075,0.00031123,120]
[337248062,1725549301389,-821.11697296,0.00031123,30]
[337248063,1725549301424,-360.0,0.00031123,30]
[337248064,1725549301463,-155.724846,0.00031123,40]
[337248065,1725549301498,-155.724846,0.00031123,40]
[337248066,1725549301535,-1000.0,0.00031123,30]
[337248067,1725549301572,-1000.0,0.00031123,30]
[337248068,1725549301612,-1000.0,0.00031123,30]
[337248069,1725549301652,-1000.0,0.00031123,30]
[337248070,1725549301688,-1000.0,0.00031123,30]
[337248071,1725549301725,-1000.0,0.00031123,30]
[337248072,1725549301761,-1000.0,0.00031123,30]
[337248073,1725549301798,-1000.0,0.00031123,30]
[337248074,1725549301834,-1000.0,0.00031123,30]
[337248075,1725549301871,-1000.0,0.00031123,30]
[337248076,1725549301908,-1000.0,0.00031123,30]
[337248077,1725549301943,-1000.0,0.00031123,30]
[337248078,1725549301981,-1000.0,0.00031123,30]
[337248079,1725549302018,-1000.0,0.00031123,30]
[337248080,1725549302053,-1000.0,0.00031123,30]
[337248081,1725549302090,-1000.0,0.00031123,30]
[337248082,1725549302129,-1000.0,0.00031123,30]
[337248083,1725549302168,-1000.0,0.00031123,30]
[337248084,1725549302210,-1000.0,0.00031123,30]
[337248085,1725549302247,-1000.0,0.00031123,30]
[337248086,1725549302285,-1000.0,0.00031123,30]
[337248087,1725549302322,-1000.0,0.00031123,30]
[337248088,1725549302359,-1000.0,0.00031123,30]
[337248089,1725549302398,-1000.0,0.00031123,30]
[337248090,1725549302437,-1000.0,0.00031123,30]
[337248091,1725549302476,-1000.0,0.00031123,30]
[337248092,1725549302514,-1000.0,0.00031123,30]
[337248093,1725549302551,-1000.0,0.00031123,30]
[337248094,1725549302591,-1000.0,0.00031123,30]
[337248095,1725549302630,-1000.0,0.00031123,30]
[337248096,1725549302668,-150.0,0.00031123,30]
[337248097,1725549302708,-150.0,0.00031123,30]
[337248098,1725549302746,-150.0,0.00031123,30]
[337248099,1725549302784,-150.0,0.00031123,30]
[337248100,1725549302822,-150.0,0.00031123,30]
[337248101,1725549302858,-150.0,0.00031123,30]
[337248102,1725549302894,-216.195912,0.00031123,30]
[337248103,1725549302930,-150.0,0.00031123,30]
[337248104,1725549302966,-150.0,0.00031123,30]
[337248105,1725549303002,-287.471533,0.00031123,30]
[337248106,1725549303048,-4973.0,0.00031123,30]
[337248107,1725549303090,-1961.0,0.00031123,30]
[337248108,1725549322907,-150.0,0.00030036,120]
[337248109,1725549322971,-271.388,0.00036301,30]
[337248110,1725549323020,-411339.162962,0.00043,120]
[337248111,1725549323062,-2231.45823232,0.00043,120]
[337248112,1725549323100,-2010.02396066,0.00043,120]
[337248113,1725549323139,-322.28049032,0.00043,120]
[337248114,1725549323178,-1000.0,0.00043,120]
[337248115,1725549323220,-1000.0,0.00043,120]
[337248116,1725549323259,-1000.0,0.00043,120]
[337248117,1725549323297,-1000.0,0.00043,120]
[337248118,1725549323336,-1000.0,0.00043,120]
[337248119,1725549323373,-1000.0,0.00043,120]
[337248120,1725549323411,-552.45951708,0.00043,120]
[337248121,1725549323449,-1000.0,0.00043,120]
[337248122,1725549323487,-1000.0,0.00043,120]
[337248123,1725549323527,-1000.0,0.00043,120]
[337248124,1725549323566,-1000.0,0.00043,120]
[337248125,1725549323609,-1000.0,0.00043,120]
[337248126,1725549323651,-1000.0,0.00043,120]
[337248127,1725549323693,-602.42163733,0.00043,120]
[337248128,1725549323732,-500000.0,0.00043,120]
[337248129,1725549323773,-10000.0,0.00043,60]
[337248130,1725549323810,-185.14,0.00043014,120]
[337248131,1725549323848,-150.0,0.0004308,120]
[337248132,1725549323885,-900.0,0.00043164,30]
[337248133,1725549323923,-500.0,0.00043164,30]
[337248134,1725549323962,-500.0,0.00043164,30]
[337248135,1725549324000,-150.0,0.00043222,120]
[337248136,1725549324039,-593.8,0.000433,120]
[337248137,1725549324076,-151.0,0.00043425,120]
[337248138,1725549324112,-10000.0,0.000435,50]
[337248139,1725549324150,-210.0,0.000436,30]
[337248140,1725549324188,-545.00154092,0.000437,120]
[337248141,1725549324228,-10446.53764352,0.000437,120]
[337248142,1725549324267,-900.0,0.00043712,30]
[337248143,1725549324308,-150.0,0.00043777,120]
[337248144,1725549324348,-500.0,0.000438,120]
[337248145,1725549324385,-2387.66,0.000438,60]
[337248146,1725549324422,-2289.9678,0.000438,60]
[337248147,1725549324460,-465.58126329,0.000438,30]
[337248148,1725549324497,-1309.12109903,0.000438,111]
[337248149,1725549324535,-870.52522942,0.000438,120]
[337248150,1725549324572,-155.724846,0.000438,53]
[337248151,1725549324612,-150.0,0.00043819,120]
[337248152,1725549324652,-2000.0,0.00043835,120]
[337248153,1725549324688,-2136.42367617,0.00043835,30]
[337248154,1725549324730,-3266.57,0.00043835,120]
[337248155,1725549324768,-3266.57,0.00043835,120]
[337248156,1725549324805,-3266.57,0.00043835,120]
[337248157,1725549325017,-3266.57,0.00043835,120]
[337248158,1725549325056,-3266.57,0.00043835,120]
[337248159,1725549325095,-3266.57,0.00043835,120]
[337248160,1725549325133,-3266.57,0.00043835,120]
[337248161,1725549325172,-3266.57,0.00043835,120]
[337248162,1725549325210,-3266.57,0.00043835,120]
[337248163,1725549325248,-3266.57,0.00043835,120]
[337248164,1725549325287,-3266.57,0.00043835,120]
[337248165,1725549325326,-3266.57,0.00043835,120]
[337248166,1725549325365,-3266.57,0.00043835,120]
[337248167,1725549325404,-3266.57,0.00043835,120]
[337248168,1725549325446,-3266.57,0.00043835,120]
[337248169,1725549325486,-3266.57,0.00043835,120]
[337248170,1725549325531,-3266.57,0.00043835,120]
[337248171,1725549325573,-3266.57,0.00043835,120]
[337248172,1725549325618,-3266.57,0.00043835,120]
[337248173,1725549325662,-3266.57,0.00043835,120]
[337248174,1725549325708,-3266.57,0.00043835,120]
[337248175,1725549325752,-3266.57,0.00043835,120]
[337248176,1725549325794,-3266.57,0.00043835,120]
[337248177,1725549325837,-3266.6,0.00043835,120]
[337248178,1725549325877,-1000.0,0.00043836,32]
[337248179,1725549325919,-50000.0,0.00044,34]
[337248180,1725549325960,-50000.0,0.00044,44]
[337248181,1725549326000,-1000000.0,0.00044,120]
[337248182,1725549326040,-681.85911102,0.00044,120]
[337248183,1725549326077,-1101.95,0.00044,120]
[337248184,1725549326115,-5000.0,0.00044,120]
[337248185,1725549326152,-2000.0,0.00044,120]
[337248186,1725549326190,-501.17550048,0.00044,120]
[337248187,1725549326231,-500000.0,0.00044,120]
[337248188,1725549326268,-500.422787,0.00044,57]
[337248189,1725549326306,-2651.05503901,0.00044049,117]
[337248190,1725549326345,-150.0,0.00044056,120]
[337248191,1725549326385,-1463.97,0.00044139,120]
[337248192,1725549326424,-782.15,0.00044147,30]
[337248193,1725549326460,-150.0,0.00044147,30]
[337248194,1725549326501,-240.07163377,0.000442,120]
[337248195,1725549326540,-240.07163373,0.000442,120]
[337248196,1725549326582,-240.07163373,0.000442,120]
[337248197,1725549326624,-240.07163373,0.000442,120]
[337248198,1725549326667,-240.07163373,0.000442,120]
[337248199,1725549326709,-2002.82,0.0004424,30]
[337248200,1725549326750,-900.0,0.0004426,30]
[337248201,1725549326791,-500.0,0.0004426,30]
[337248202,1725549326832,-500.0,0.0004426,30]
[337248203,1725549326872,-1578.08,0.0004426,30]
[337248204,1725549326910,-150.0,0.00044291,30]
[337248205,1725549326953,-2791.22,0.00044298,30]
[337248206,1725549326991,-250.84,0.00044353,30]
[337248207,1725549327030,-2000.0,0.00044383,120]
[337248208,1725549327071,-151.0,0.00044384,120]
[337248209,1725549327111,-4347.19,0.00044384,120]
[337248210,1725549327156,-2800.0,0.000444,120]
[337248211,1725549327204,-2366.62,0.00044467,30]
[337248212,1725549327244,-150.0,0.0004453,30]
[337248213,1725549327286,-307.49,0.0004453,30]
[337248214,1725549327329,-1490.07,0.00044576,30]
[337248215,1725549327371,-1386.95,0.00044604,30]
[337248216,1725549327414,-150.0,0.00044646,120]
[337248217,1725549327456,-150.0,0.00044672,30]
[337248218,1725549327497,-150.0,0.0004472,30]
[337248219,1725549327541,-150.0,0.00044757,120]
[337248220,1725549327583,-150.0,0.00044776,120]
[337248221,1725549327624,-150.0,0.00044778,120]
[337248222,1725549327667,-2444.18349813,0.000448,90]
[337248223,1725549327706,-928.16,0.00044848,30]
[337248224,1725549327746,-337.56471111,0.000449,120]
[337248225,1725549327784,-26811.46074231,0.000449,120]
[337248226,1725549327823,-164253.63475203,0.000449,120]
[337248227,1725549327861,-1145975.29992448,0.000449,30]
[337248228,1725549327900,-117698.75954279,0.000449,30]
[337248229,1725549327940,-2000.0,0.00044931,120]
[337248230,1725549327983,-2331.12,0.00044931,30]
[337248231,1725549328024,-4000.0,0.00044999,120]
[337248232,1725549328070,-50000.0,0.00045,35]
[337248233,1725549328118,-50000.0,0.00045,45]
[337248234,1725549328166,-150.0,0.00045,85]
[337248235,1725549328216,-1000.0,0.00045,120]
[337248236,1725549328265,-1000.0,0.00045,120]
[337248237,1725549328311,-1000.0,0.00045,120]
[337248238,1725549328355,-1000.0,0.00045,120]
[337248239,1725549328400,-1000.0,0.00045,120]
[337248240,1725549328441,-1000.0,0.00045,120]
[337248241,1725549328494,-1000.0,0.00045,120]
[337248242,1725549328536,-1000.0,0.00045,120]
[337248243,1725549328578,-1000.0,0.00045,120]
[337248244,1725549328623,-500000.0,0.00045,120]
[337248245,1725549328670,-247.96881893,0.00045,120]
[337248246,1725549328715,-1050000.0,0.00045,120]
[337248247,1725549328758,-1617.17971288,0.00045,90]
[337248248,1725549328801,-185.99599612,0.00045,30]
[337248249,1725549328842,-880.62489124,0.00045,120]
[337248250,1725549328881,-225.04831608,0.00045,40]
[337248251,1725549328920,-150.0,0.00045,120]
[337248252,1725549328957,-821.623337,0.00045,120]
[337248253,1725549328995,-617.96455641,0.00045,120]
[337248254,1725549329033,-218.18601135,0.00045,120]
[337248255,1725549329071,-308.30309063,0.00045,120]
[337248256,1725549329111,-1033.63729827,0.00045,120]
[337248257,1725549329150,-890.21862045,0.00045,120]
[337248258,1725549329191,-5000.0,0.00045,120]
[337248259,1725549329236,-2521.0,0.00045,30]
[337248260,1725549329278,-200.0,0.00045,120]
[337248261,1725549329478,-393.69040936,0.00045,120]
[337248262,1725549329518,-1000.0,0.00045,120]
[337248263,1725549329559,-580.0,0.00045,120]
[337248264,1725549329599,-385.0,0.00045,120]
[337248265,1725549329642,-320.0,0.00045,120]
[337248266,1725549329682,-1000.0,0.00045,120]
[337248267,1725549329727,-269.11758557,0.0004512,61]
[337248268,1725549329771,-1654.47403461,0.0004512,61]
[337248269,1725549329812,-333.53499,0.0004512,30]
[337248270,1725549329855,-150.0,0.00045177,120]
[337248271,1725549329897,-202.0,0.0004529,30]
[337248272,1725549329936,-218.0,0.000453,30]
[337248273,1725549329979,-210.0,0.000453,30]
[337248274,1725549330019,-400.7853602,0.0004532,120]
[337248275,1725549330059,-151.0,0.00045342,120]
[337248276,1725549330098,-900.0,0.00045356,30]
[337248277,1725549330137,-487.73881767,0.00045356,30]
[337248278,1725549330178,-500.0,0.00045356,30]
[337248279,1725549330218,-2315.87,0.000454,30]
[337248280,1725549330259,-2000.0,0.00045479,120]
[337248281,1725549330300,-5083.78502556,0.00045533,120]
[337248282,1725549330339,-2651.05503901,0.00045549,117]
[337248283,1725549330379,-226.14922687,0.000456,120]
[337248284,1725549330417,-150.0,0.00045628,120]
[337248285,1725549330460,-2178.5689,0.000458,90]
[337248286,1725549330500,-232.0432617,0.000459,30]
[337248287,1725549330537,-2649.0,0.00045948,66]
[337248288,1725549330577,-1000.0,0.00045999,120]
[337248289,1725549330622,-50000.0,0.00046,46]
[337248290,1725549330664,-170.3,0.00046,96]
[337248291,1725549330703,-807.4488767,0.00046,120]
[337248292,1725549330744,-1000.0,0.00046,120]
[337248293,1725549330785,-1000.0,0.00046,120]
[337248294,1725549330823,-1000.0,0.00046,120]
[337248295,1725549330861,-1000.0,0.00046,120]
[337248296,1725549330900,-1000.0,0.00046,120]
[337248297,1725549330938,-1000.0,0.00046,120]
[337248298,1725549330980,-1000.0,0.00046,120]
[337248299,1725549331017,-1000.0,0.00046,120]
[337248300,1725549331055,-1000.0,0.00046,120]
[337248301,1725549331094,-74253.89614828,0.00046,120]
[337248302,1725549334497,-150.0,0.00038306,120]
[337248303,1725549334549,-800.0,0.00042068,30]
[337248304,1725549334591,-800.0,0.00042616,30]
[337248305,1725549334637,-425746.10385172,0.00046,120]
[337248306,1725549334678,-1000000.0,0.00046,120]
[337248307,1725549334720,-1000000.0,0.00046,120]
[337248308,1725549334763,-1000.0,0.00046,30]
[337248309,1725549334805,-2961.95062887,0.00046,30]
[337248310,1725549334847,-501.04,0.00046,33]
[337248311,1725549334890,-2000.0,0.00046,120]
[337248312,1725549334930,-2500.75399677,0.00046,120]
[337248313,1725549334970,-2133.39518749,0.00046,120]
[337248314,1725549335013,-2000.0,0.00046027,120]
[337248315,1725549335054,-151.0,0.00046301,120]
[337248316,1725549335097,-150.0,0.00046337,120]
[337248317,1725549335138,-150.0,0.00046353,120]
[337248318,1725549335180,-7030.79,0.00046357,113]
[337248319,1725549335226,-150.0,0.00046392,120]
[337248320,1725549335269,-900.0,0.00046452,30]
[337248321,1725549335313,-500.0,0.00046452,30]
[337248322,1725549335355,-30000.0,0.000465,30]
[337248323,1725549335397,-2110.0,0.000465,30]
[337248324,1725549335437,-473.40858824,0.000465,120]
[337248325,1725549335482,-150.0,0.00046524,120]
[337248326,1725549335524,-2000.0,0.00046575,120]
[337248327,1725549335565,-1328.28,0.00046575,120]
[337248328,1725549335606,-500.0,0.00046575,120]
[337248329,1725549335646,-500.0,0.00046575,120]
[337248330,1725549335686,-3000.0,0.00046575,90]
[337248331,1725549335729,-3000.0,0.00046575,90]
[337248332,1725549335943,-3000.0,0.00046575,90]
[337248333,1725549335984,-3000.0,0.00046575,90]
[337248334,1725549336024,-2313.39096769,0.00046575,90]
[337248335,1725549336065,-500.0,0.00046575,120]
[337248336,1725549336104,-500.0,0.00046575,120]
[337248337,1725549336145,-500.0,0.00046575,120]
[337248338,1725549336184,-500.04851512,0.00046575,120]
[337248339,1725549336224,-1500.0,0.00046575,30]
[337248340,1725549336292,800.0,0.00043164,30]
[337248341,1725549336414,800.0,0.00043712,30]
[337248342,1725549338079,800.0,0.0004426,30]
[337248343,1725549339692,800.0,0.00045356,30]
[337248344,1725549339970,150.0,0.00045356,30]
[337248345,1725549341301,800.0,0.00046452,30]
[337248346,1725549347953,-1020.3684,0.00015,10]
[337248347,1725549350696,1071.29482262,0.00046575,30]
[337248349,1725549359125,922.62067664,0.00046,120]
[337248350,1725549364431,1852.69,0.000456,30]
[337248351,1725549364888,288.93015848,0.00043164,30]
[337248352,1725549367371,500.0,0.00043164,30]
[337248353,1725549368220,1100.0,0.00046,120]
[337248354,1725549368970,500.0,0.00043712,30]
[337248355,1725549369493,1000.0,0.00046575,120]
[337248356,1725549370579,500.0,0.0004426,30]
[337248357,1725549372294,500.0,0.00044808,30]
[337248358,1725549382006,-218.03630715,0.00045,120]
[337248359,1725549382045,-1000.0,0.00046575,120]
[337248360,1725549382086,-10864.0,0.00046599,90]
[337248361,1725549382124,-150.0,0.00046637,120]
[337248362,1725549382163,-240.06089775,0.000467,120]
[337248363,1725549382204,-177.45403585,0.00046704,40]
[337248364,1725549382243,-222.85212034,0.00046704,40]
[337248365,1725549382287,-202.22658778,0.00046704,40]
[337248366,1725549382327,-256.12940685,0.00046704,40]
[337248367,1725549382365,-150.0,0.00046762,120]
[337248368,1725549382405,-150.0,0.00046778,120]
[337248369,1725549382444,-150.0,0.00046799,120]
[337248370,1725549382482,-1099.99999994,0.000468,120]
[337248371,1725549382525,-2000.0,0.000468,120]
[337248372,1725549382563,-2178.5687,0.000468,90]
[337248373,1725549382603,-1328.28,0.00046849,120]
[337248374,1725549382643,-500.0,0.00046849,120]
[337248375,1725549382682,-500.0,0.00046849,120]
[337248376,1725549382723,-150.0,0.00046865,120]
[337248377,1725549382763,-150.0,0.00046894,120]
[337248378,1725549382803,-150.0,0.00046902,120]
[337248379,1725549382842,-150.0,0.00046964,120]
[337248380,1725549382879,-994.47863889,0.00046998,120]
[337248381,1725549382919,-50000.0,0.00047,47]
[337248382,1725549382955,-300.0,0.00047,120]
[337248383,1725549382992,-2000.42928388,0.00047,120]
[337248384,1725549383030,-651.93,0.00047,120]
[337248385,1725549383069,-464.11024726,0.00047,120]
[337248386,1725549383111,-658.0,0.00047,90]
[337248387,1725549383151,-645.68,0.00047,90]
[337248388,1725549383193,-1000000.0,0.00047,120]
[337248389,1725549383237,-588564.0,0.00047,120]
[337248390,1725549383282,-2000.0,0.00047,120]
[337248391,1725549383325,-1641.58,0.00047,120]
[337248392,1725549383368,-2651.05503901,0.00047049,117]
[337248393,1725549383412,-150.0,0.00047092,120]
[337248394,1725549383454,-150.0,0.00047108,120]
[337248395,1725549383496,-2624.73,0.00047123,120]
[337248396,1725549383541,-2000.0,0.00047123,120]
[337248397,1725549383584,-1328.28,0.00047123,120]
[337248398,1725549383626,-500.0,0.00047123,120]
[337248399,1725549383838,-500.0,0.00047123,120]
[337248400,1725549383879,-150.0,0.00047156,120]
[337248401,1725549383920,-150.0,0.00047218,120]
[337248402,1725549383960,-151.0,0.0004726,120]
[337248403,1725549384001,-1463.97,0.000473,120]
[337248404,1725549384042,-1328.28,0.00047397,120]
[337248405,1725549384082,-500.0,0.00047397,120]
[337248406,1725549384121,-500.0,0.00047397,120]
[337248407,1725549384160,-3280.93944036,0.000475,60]
[337248408,1725549384199,-2624.73,0.00047671,120]
[337248409,1725549384236,-1824.59746673,0.00047671,120]
[337248410,1725549384276,-1328.28,0.00047671,120]
[337248411,1725549384318,-629.82177778,0.00047671,120]
[337248412,1725549384359,-538.4758442,0.00047671,120]
[337248413,1725549384399,-180.73617784,0.000478,120]
[337248414,1725549384439,-2311.36479465,0.000478,90]
[337248415,1725549384481,-2188.568,0.000478,90]
[337248416,1725549384524,-5000.0,0.000478,120]
[337248417,1725549384563,-150.0,0.00047804,120]
[337248418,1725549384605,-150.0,0.00047855,120]
[337248419,1725549384645,-150.0,0.00047877,120]
[337248420,1725549384688,-150.0,0.00047881,120]
[337248421,1725549384729,-150.0,0.00047899,120]
[337248422,1725549384768,-1328.28,0.00047945,120]
[337248423,1725549384808,-150.0,0.00047978,120]
[337248424,1725549384849,-1000.0,0.00047999,120]
[337248425,1725549384891,-50000.0,0.00048,48]
[337248426,1725549384929,-160.0,0.00048,90]
[337248427,1725549384966,-171.5943068,0.00048,60]
[337248428,1725549385005,-1589.81984556,0.00048,120]
[337248429,1725549385045,-2000.0,0.00048,120]
[337248430,1725549385083,-5399.03217369,0.00048,120]
[337248431,1725549385122,-241.452767,0.00048,120]
[337248432,1725549385160,-5000.53503499,0.00048,120]
[337248433,1725549385198,-3612.20021755,0.00048,120]
[337248434,1725549385239,-151.0,0.00048,120]
[337248435,1725549385279,-2133.39518748,0.00048,120]
[337248436,1725549385318,-150.0,0.00048048,120]
[337248437,1725549385357,-150.0,0.0004805,120]
[337248438,1725549385394,-150.0,0.00048179,120]
[337248439,1725549385433,-2624.73,0.00048219,120]
[337248440,1725549385475,-1328.28,0.00048219,120]
[337248441,1725549385515,-151.0,0.00048219,120]